bitfinex/quotes_ETHUSD_20240618
["timestamp","ask_amount","ask_price","bid_price","bid_amount"]
[1718686635243,3.55,3452.3,3450.8,0.05592499]
[1718686636749,3.0,3452.3,3450.9,0.05794947]
[1718686636962,3.0,3452.3,3450.9,2.3061]
[1718686637185,3.0,3452.3,3451.0,0.05728076]
[1718686637682,5.328,3452.4,3451.0,0.05728076]
[1718686637837,3.0,3452.4,3451.1,0.52611708]
[1718686638042,0.30219964,3452.6,3451.2,2.45376854]
[1718686638355,3.50134727,3452.8,3451.3,2.95538702]
[1718686638545,3.50134727,3452.8,3451.2,5.35129854]
[1718686638546,3.0,3452.7,3451.2,2.45376854]
[1718686638748,3.50134727,3452.8,3451.4,0.05725633]
[1718686638944,5.3703,3452.6,3451.3,0.05726243]
[1718686639150,2.3183,3451.8,3450.0,10.0]
[1718686639344,0.55,3451.7,3450.0,10.0]
[1718686639544,0.55,3451.7,3450.1,0.05155474]
[1718686639761,3.55,3451.7,3450.1,0.05155474]
[1718686639982,1.39803,3451.6,3450.2,1.00515547]
[1718686640286,1.39803,3451.6,3450.3,0.05154252]
[1718686644147,2.06,3450.7,3450.0,6.85152815]
[1718686644353,2.06,3450.7,3450.4,0.04809562]
[1718686644354,5.4117,3450.5,3450.4,0.04809562]
[1718686644549,8.9617,3450.5,3450.0,6.85152815]
[1718686644869,4.10217,3450.4,3450.0,6.85152815]
[1718686645081,0.5014926,3450.8,3450.0,6.85152815]
[1718686645273,3.0,3450.8,3450.1,0.04162011]
[1718686645583,3.0,3450.8,3450.0,6.85152815]
[1718686651394,3.052,3450.6,3450.0,6.85152815]
[1718686651591,3.0,3450.1,3450.0,6.85152815]
[1718686652092,6.0,3450.1,3450.0,6.85152815]
[1718686652271,3.0,3450.1,3450.0,6.85152815]
[1718686653478,3.5014926,3450.2,3450.0,6.85152815]
[1718686653778,3.0,3450.2,3450.0,6.85152815]
[1718686653982,0.7971818,3450.1,3450.0,6.85152815]
[1718686654300,3.7971818,3450.1,3450.0,6.85152815]
[1718686655201,0.7971818,3450.1,3450.0,6.85152815]
[1718686657931,3.0,3450.4,3450.0,6.85152815]
[1718686658491,1.38790261,3450.5,3450.0,6.85152815]
[1718686659805,7.43,3450.7,3450.0,6.85152815]
[1718686660497,5.1065525,3450.6,3450.0,6.85152815]
[1718686660690,2.1065525,3450.5,3450.0,6.85152815]
[1718686661591,2.1065525,3450.4,3450.0,6.85152815]
[1718686661791,3.0,3450.8,3450.0,6.85152815]
[1718686661992,2.10651491,3450.7,3450.0,6.85152815]
[1718686662292,5.10651491,3450.7,3450.0,6.85152815]
[1718686662648,2.10651491,3450.6,3450.0,6.85152815]
[1718686663503,2.10651491,3450.5,3450.0,6.85152815]
[1718686663716,2.10651491,3450.4,3450.0,6.85152815]
[1718686664028,3.0,3450.9,3450.0,6.85152815]
[1718686664223,2.10641903,3450.8,3450.1,0.03988296]
[1718686664389,2.10641903,3450.8,3450.0,7.53668097]
[1718686665024,2.10641903,3450.8,3450.1,0.03988296]
[1718686665730,2.10641903,3450.8,3450.2,2.4139]
[1718686666227,2.10641903,3450.8,3450.3,0.03942257]
[1718686666523,2.10641903,3450.8,3450.2,2.4139]
[1718686666692,2.10641903,3450.8,3450.4,0.03941646]
[1718686667029,2.10641903,3450.8,3450.2,3.4089581]
[1718686667505,2.10641903,3450.8,3450.3,0.03942257]
[1718686668026,2.10641903,3450.8,3450.2,3.4089581]
[1718686668199,2.10641903,3450.8,3450.3,0.03928781]
[1718686668534,2.10641903,3450.8,3450.2,3.4089581]
[1718686668709,2.10641903,3450.8,3450.4,0.03932176]
[1718686668892,2.10641903,3450.8,3450.3,1.13389178]
[1718686671432,2.10641903,3450.7,3450.3,1.13389178]
[1718686671726,1.88905187,3451.0,3450.3,1.13389178]
[1718686671727,2.10641903,3450.6,3450.3,1.13389178]
[1718686671894,2.10641903,3450.5,3450.3,1.13389178]
[1718686672095,1.8889639,3451.0,3450.4,0.35477918]
[1718686672316,2.10618855,3450.9,3450.5,0.03929016]
[1718686672719,2.10618855,3450.9,3450.2,2.4139]
[1718686672903,2.10618855,3450.9,3450.6,0.03928405]
[1718686673127,6.052,3450.6,3450.0,6.85152815]
[1718686673428,5.112,3450.3,3450.0,6.85152815]
[1718686673714,0.5662,3450.2,3450.0,6.85152815]
[1718686673861,3.5662,3450.2,3450.0,6.85152815]
[1718686677299,5.3724,3450.1,3450.0,6.84822815]
[1718686677462,15.4962907,3450.1,3450.0,6.84602815]
[1718686677662,16.8961507,3450.1,3450.0,6.84602815]
[1718686677864,16.2072788,3450.1,3450.0,6.84602815]
[1718686679047,10.8240178,3450.1,3450.0,6.84602815]
[1718686680485,12.8840178,3450.1,3450.0,6.84602815]
[1718686680638,12.8840178,3450.1,3450.0,6.88176821]
[1718686681350,12.38226,3450.1,3450.0,6.88176821]
[1718686681577,12.88397832,3450.1,3450.0,6.88176821]
[1718686682387,10.56357832,3450.1,3450.0,6.88176821]
[1718686683288,10.56356373,3450.1,3450.0,6.88176821]
[1718686684470,10.86472521,3450.1,3450.0,6.88176821]
[1718686684669,22.38772721,3450.1,3450.0,6.88176821]
[1718686684870,18.57642721,3450.1,3450.0,6.84602815]
[1718686685076,14.44803121,3450.1,3450.0,6.84602815]
[1718686685261,14.44803121,3450.1,3450.0,6.8822309]
[1718686685586,14.07885721,3450.1,3450.0,6.8822309]
[1718686685895,13.49885721,3450.1,3450.0,6.8822309]
[1718686686591,13.27461421,3450.1,3450.0,6.8822309]
[1718686686885,10.86472521,3450.1,3450.0,6.8822309]
[1718686687398,13.49801821,3450.1,3450.0,6.8822309]
[1718686687555,13.49801821,3450.1,3447.9,2.4785]
[1718686687556,6.052,3449.4,3447.9,2.4785]
[1718686687755,2.06,3449.2,3447.9,2.4785]
[1718686689386,3.50181286,3449.3,3448.0,0.05800076]
[1718686689553,5.359,3449.2,3447.3,2.4166]
[1718686689900,2.06,3448.8,3447.4,0.24166]
[1718686690588,3.0,3448.9,3447.4,0.24166]
[1718686692582,3.0,3448.9,3447.6,2.2984]
[1718686692891,1.85453594,3449.3,3447.8,2.2984]
[1718686692892,3.0,3449.2,3447.8,2.2984]
[1718686693094,1.85453594,3449.3,3447.8,2.2984]
[1718686693095,4.85444111,3449.3,3447.8,2.2984]
[1718686693503,3.50178808,3449.3,3447.8,2.2984]
[1718686693719,3.0,3449.3,3447.8,2.2984]
[1718686695277,3.0,3449.3,3447.9,0.03310779]
[1718686695481,3.0,3449.3,3448.0,0.59820468]
[1718686695681,3.0,3449.3,3448.1,2.39529555]
[1718686696991,3.50178124,3449.3,3448.1,2.39529555]
[1718686697198,3.0,3449.3,3448.1,2.39529555]
[1718686697806,3.0,3449.5,3448.1,2.39529555]
[1718686698009,2.06,3449.6,3448.2,0.29935002]
[1718686698010,5.06,3449.6,3448.2,0.29935002]
[1718686698516,5.06,3449.6,3448.3,0.03308331]
[1718686700722,5.06,3449.6,3448.2,0.29935002]
[1718686701322,5.06,3449.6,3448.3,0.03312338]
[1718686702924,5.06,3449.6,3448.4,2.3307]
[1718686703231,5.06,3449.6,3448.4,2.59701734]
[1718686703527,3.0,3449.6,3448.5,0.03311114]
[1718686704123,5.33509503,3449.7,3448.6,2.389]
[1718686704586,3.0,3449.6,3448.7,0.03309891]
[1718686704988,1.83337529,3449.7,3448.7,0.03309891]
[1718686706302,0.5017596,3449.7,3448.7,0.03309891]
[1718686707127,3.0,3450.0,3448.7,0.03309891]
[1718686707430,3.0,3450.0,3448.7,0.26884162]
[1718686707636,3.50171974,3450.1,3448.7,0.32682825]
[1718686707948,3.50171974,3450.1,3448.7,0.26884162]
[1718686709597,3.0,3450.1,3448.7,0.26884162]
[1718686709794,3.0,3450.1,3448.8,0.03309279]
[1718686709998,3.0,3450.1,3448.9,2.266]
[1718686710193,3.0,3450.1,3449.0,0.05798218]
[1718686710389,4.81903328,3450.3,3449.0,0.09080417]
[1718686710591,4.31731354,3450.3,3449.1,2.266]
[1718686711130,4.31731354,3450.3,3449.2,0.09078812]
[1718686711631,3.0,3450.2,3449.2,0.09078812]
[1718686711831,1.31731354,3450.3,3449.2,0.09078812]
[1718686712243,1.31731354,3450.3,3449.2,0.32646693]
[1718686712602,1.31731354,3450.3,3449.2,0.26848857]
[1718686715910,1.31731354,3450.3,3449.3,2.2814]
[1718686717139,0.55,3450.2,3449.3,2.2814]
[1718686717436,0.55,3450.2,3448.4,0.26631734]
[1718686717437,1.15332666,3450.2,3448.5,2.3862]
[1718686717599,3.0,3450.0,3448.6,0.26525173]
[1718686717799,3.0,3450.0,3448.6,0.29766736]
[1718686717995,3.0,3450.0,3448.7,2.3862]
[1718686718412,3.0,3450.0,3448.8,0.03251626]
[1718686718837,4.25059884,3450.2,3448.9,2.3862]
[1718686719042,3.7488791,3450.2,3448.9,2.3862]
[1718686719333,3.7488791,3450.2,3449.0,0.03250766]
[1718686719933,3.7488791,3450.2,3448.9,2.3862]
[1718686720135,3.7488791,3450.2,3449.0,0.03246761]
[1718686721138,0.7488791,3450.2,3449.0,0.03246761]
[1718686722525,0.1988791,3450.2,3449.0,0.03246761]
[1718686722720,0.1988791,3450.2,3449.0,0.56253221]
[1718686724127,0.1988791,3450.2,3449.0,0.03246761]
[1718686725343,0.1988791,3450.2,3448.9,2.3862]
[1718686725645,2.06,3450.1,3448.9,2.3862]
[1718686725827,2.46997807,3450.1,3448.9,2.3862]
[1718686726225,5.97164562,3450.1,3448.9,2.3862]
[1718686726433,5.56166755,3450.1,3448.9,2.3862]
[1718686726856,5.97164562,3450.1,3448.9,2.3862]
[1718686728311,0.50166755,3450.0,3448.9,2.3862]
[1718686728511,3.50166755,3450.0,3448.9,2.3862]
[1718686728796,6.50166755,3450.0,3448.9,2.3862]
[1718686728944,6.91164562,3450.0,3448.9,2.3862]
[1718686729322,0.50166755,3449.9,3448.9,2.3862]
[1718686730158,0.50170577,3449.9,3448.9,2.3862]
[1718686731165,3.50170577,3450.0,3449.0,0.03262051]
[1718686731674,3.0,3449.9,3449.0,0.03262051]
[1718686731879,0.50170577,3450.0,3449.1,2.3168]
[1718686732036,0.50170577,3450.1,3449.1,2.3168]
[1718686732240,0.50170577,3450.1,3449.2,0.03260828]
[1718686732649,0.70058487,3450.2,3449.2,0.03260828]
[1718686733287,2.10691115,3450.1,3449.2,0.03260828]
[1718686733579,2.10691115,3450.0,3449.2,0.03260828]
[1718686733877,2.10691115,3449.9,3449.2,0.03260828]
[1718686734077,2.10691115,3449.8,3449.2,0.03260828]
[1718686734286,2.10691115,3449.7,3449.2,0.03260828]
[1718686734450,2.10691115,3449.6,3449.2,0.03260828]
[1718686734648,2.10691115,3449.5,3449.2,0.03260828]
[1718686734848,2.10691115,3449.4,3449.2,0.03260828]
[1718686735054,2.10691115,3449.3,3449.2,0.03260828]
[1718686735465,2.10691115,3449.9,3449.2,0.03260828]
[1718686735792,3.0,3449.9,3449.2,0.03260828]
[1718686735956,2.10691129,3449.8,3449.2,0.03260828]
[1718686736138,2.10691129,3449.7,3449.2,0.03260828]
[1718686736472,2.10691129,3449.6,3449.2,0.03260828]
[1718686736680,2.10691129,3449.5,3449.2,0.03260828]
[1718686736882,2.10691129,3449.4,3449.2,0.03260828]
[1718686737038,2.10691129,3449.3,3449.2,0.03260828]
[1718686737440,2.10691129,3449.8,3449.2,0.03260828]
[1718686737652,2.10691129,3449.7,3449.2,0.03260828]
[1718686737885,2.10691129,3449.6,3449.2,0.03260828]
[1718686738060,2.10691129,3449.5,3449.2,0.03260828]
[1718686738389,2.10691129,3449.4,3449.2,0.03260828]
[1718686738687,2.10691129,3449.3,3449.2,0.03260828]
[1718686740693,3.858,3449.9,3449.2,0.03260828]
[1718686740990,2.1069041,3449.8,3449.1,2.3168]
[1718686741158,2.9649041,3449.7,3449.1,2.3168]
[1718686741494,2.1069041,3449.6,3449.2,0.03262651]
[1718686741657,2.1069041,3449.5,3449.2,0.03262651]
[1718686741854,2.1069041,3449.4,3449.1,2.3168]
[1718686742055,2.1069041,3449.3,3449.1,2.3168]
[1718686742286,2.1069041,3449.2,3449.1,2.3168]
[1718686750995,2.1069041,3449.2,3449.1,2.34949817]
[1718686751767,2.1069041,3449.2,3449.1,0.03269817]
[1718686751970,2.1069041,3449.2,3448.7,2.3585]
[1718686752211,2.1069041,3449.1,3448.7,2.3585]
[1718686752507,2.1069041,3449.0,3448.8,0.03271651]
[1718686752713,2.1069041,3448.9,3448.8,0.03271651]
[1718686752878,2.1069041,3448.9,3448.7,2.3585]
[1718686753081,2.1069041,3448.8,3448.7,2.3585]
[1718686753414,2.1069041,3448.8,3448.7,3.2165]
[1718686755713,2.1069041,3448.8,3448.2,2.4016]
[1718686755900,2.1069041,3448.7,3448.3,0.858]
[1718686756106,7.43,3449.3,3448.3,0.858]
[1718686756107,2.1069041,3448.6,3448.3,0.858]
[1718686756278,2.1069041,3448.5,3448.3,0.858]
[1718686756479,2.1069041,3448.4,3448.3,1.473982]
[1718686756682,2.1069041,3449.2,3448.3,1.473982]
[1718686756876,2.1069041,3449.1,3448.7,0.858]
[1718686757080,7.43,3449.3,3448.7,0.858]
[1718686757081,2.1069041,3449.0,3448.9,3.2596]
[1718686757281,2.1069041,3449.0,3448.9,3.88132161]
[1718686758683,2.1069041,3449.8,3448.9,3.88132161]
[1718686758898,2.1069041,3449.7,3449.0,0.858]
[1718686759105,2.1069041,3449.6,3449.0,0.858]
[1718686759426,2.1069041,3449.5,3448.9,2.4016]
[1718686759590,2.1069041,3449.4,3448.9,2.4016]
[1718686759783,2.1069041,3449.3,3448.9,2.4016]
[1718686759998,2.1069041,3449.2,3448.9,2.4016]
[1718686760206,0.858,3450.0,3448.9,2.4016]
[1718686760207,2.1069041,3449.1,3448.9,2.4016]
[1718686760483,2.1069041,3449.0,3448.9,2.4016]
[1718686763097,2.1069041,3449.0,3448.9,2.43417204]
[1718686763296,2.1069041,3449.0,3448.9,0.03257204]
[1718686763696,2.1069041,3449.0,3448.5,0.858]
[1718686763923,0.858,3449.6,3448.9,0.03263394]
[1718686764128,2.10703109,3449.5,3448.5,0.858]
[1718686764423,2.10703109,3449.4,3448.5,0.858]
[1718686764626,2.10703109,3449.3,3448.6,0.03265229]
[1718686764921,2.10703109,3449.2,3448.6,0.03265229]
[1718686765095,2.10703109,3449.1,3448.6,0.03265229]
[1718686765428,2.10703109,3449.0,3448.7,0.858]
[1718686765623,2.10703109,3448.9,3448.7,0.89064617]
[1718686765926,2.10703109,3448.8,3448.7,0.89064617]
[1718686769543,2.10703109,3448.8,3448.7,0.03264617]
[1718686769746,2.10703109,3448.8,3448.7,0.89064617]
[1718686771556,2.10703109,3448.8,3448.7,4.75062501]
[1718686773050,8.288,3449.9,3448.7,4.75062501]
[1718686773247,0.858,3449.9,3448.7,3.79028617]
[1718686773555,2.10699481,3449.8,3448.7,3.75764]
[1718686773740,2.10699481,3449.7,3448.7,3.75764]
[1718686773937,2.10699481,3449.6,3448.7,3.75764]
[1718686774137,2.10699481,3449.5,3448.8,0.03271649]
[1718686774341,2.10699481,3449.4,3448.8,0.03271649]
[1718686774553,2.10699481,3449.3,3448.8,0.03271649]
[1718686774854,2.10699481,3449.2,3448.8,0.03271649]
[1718686775015,2.10699481,3449.1,3448.9,0.858]
[1718686775218,2.10699481,3449.0,3448.9,0.858]
[1718686778770,8.288,3449.9,3448.9,0.858]
[1718686779069,2.106978,3449.8,3448.9,0.858]
[1718686779370,2.106978,3449.7,3448.9,0.91598221]
[1718686779663,0.858,3449.9,3448.9,0.91598221]
[1718686779827,2.10691849,3449.8,3448.9,0.91598221]
[1718686780036,2.10691849,3449.7,3448.9,0.91598221]
[1718686780223,2.10691849,3449.6,3448.9,0.91598221]
[1718686780422,2.10691849,3449.5,3448.9,0.858]
[1718686780623,2.10691849,3449.4,3448.8,0.858]
[1718686780831,2.10691849,3449.3,3448.8,0.858]
[1718686781056,2.10691849,3449.2,3448.9,0.03269581]
[1718686781260,2.10691849,3449.1,3448.9,0.03269581]
[1718686781555,2.10691849,3449.0,3448.9,0.03269581]
[1718686782053,2.10691849,3449.0,3448.8,0.858]
[1718686782260,2.10691849,3448.9,3448.8,0.858]
[1718686783157,2.10691849,3448.9,3448.8,0.89073106]
[1718686784328,2.10691849,3448.9,3448.8,0.03273106]
[1718686784650,2.10691849,3448.9,3448.7,0.858]
[1718686784957,2.10691849,3448.8,3448.7,0.858]
[1718686785125,2.10691849,3448.8,3448.4,5.20359]
[1718686785329,2.10691849,3448.7,3448.5,0.81036]
[1718686785552,2.10691849,3448.6,3448.4,5.20359]
[1718686785746,2.10691849,3448.5,3448.4,5.20359]
[1718686785947,2.10691849,3448.5,3448.4,6.06159]
[1718686786824,2.10691849,3449.5,3448.4,6.06159]
[1718686787056,2.10691849,3449.4,3448.4,5.20359]
[1718686787255,2.10691849,3449.3,3448.8,0.858]
[1718686787563,2.10691849,3449.2,3448.8,0.858]
[1718686787766,2.10691849,3449.1,3448.8,0.858]
[1718686787929,2.10691849,3449.0,3448.8,0.858]
[1718686788129,2.10691849,3448.9,3448.8,0.858]
[1718686790629,2.10691849,3448.9,3448.8,1.233771]
[1718686790825,2.10691849,3448.9,3448.8,6.523821]
[1718686791241,2.10691849,3448.9,3448.8,9.423371]
[1718686791425,7.43,3449.7,3448.9,2.89941]
[1718686791629,2.10680407,3449.6,3449.4,0.858]
[1718686791827,2.10680407,3449.5,3449.0,2.95734839]
[1718686792061,2.10680407,3449.4,3449.1,0.86231194]
[1718686792280,7.93169022,3450.2,3449.3,0.858]
[1718686792435,2.10667864,3450.1,3449.5,0.858]
[1718686792638,2.10667864,3450.0,3449.5,0.858]
[1718686792842,7.93169022,3450.2,3449.5,0.858]
[1718686792843,2.10667864,3449.9,3449.6,0.03260932]
[1718686793059,2.10667864,3449.8,3449.6,0.03260932]
[1718686793366,2.10667864,3449.7,3449.5,3.2485]
[1718686793539,2.10667864,3449.6,3449.5,3.2485]
[1718686793902,2.10667864,3450.1,3449.5,3.57335]
[1718686794023,7.93169022,3450.2,3449.9,0.858]
[1718686794024,2.10667864,3450.0,3449.9,0.858]
[1718686794642,2.10667864,3450.0,3449.5,5.61432]
[1718686794838,2.10667864,3449.9,3449.8,0.858]
[1718686795151,2.10667864,3450.1,3449.8,0.858]
[1718686795351,2.10667864,3450.0,3449.8,0.858]
[1718686795552,2.10667864,3449.9,3449.1,2.3986]
[1718686795727,2.10667864,3449.8,3449.1,2.9659821]
[1718686796054,2.10667864,3449.7,3449.5,0.858]
[1718686796230,2.10667864,3449.6,3449.5,0.858]
[1718686797081,2.10667864,3450.1,3449.5,0.858]
[1718686797369,2.10667864,3450.0,3449.5,0.858]
[1718686797693,2.10667864,3449.9,3449.5,0.858]
[1718686797973,2.10667864,3449.8,3449.6,0.03247825]
[1718686798131,2.10667864,3449.7,3449.6,0.03247825]
[1718686798331,2.10667864,3450.1,3449.6,0.89047825]
[1718686798568,7.93169022,3450.2,3449.6,0.89047825]
[1718686798569,2.10667864,3450.0,3449.6,0.03247825]
[1718686798891,2.10667864,3449.9,3449.7,0.858]
[1718686799167,2.10667864,3449.8,3449.7,0.89047214]
[1718686799363,2.10667864,3450.1,3449.7,0.89047214]
[1718686800239,2.10667864,3450.1,3449.7,0.88370214]
[1718686800534,2.10649364,3450.0,3449.7,0.88370214]
[1718686800729,2.10651632,3449.9,3449.7,0.88370214]
[1718686800930,2.10651632,3449.8,3449.7,0.88370214]
[1718686801175,2.10651632,3450.2,3449.7,0.88370214]
[1718686801508,2.10651632,3450.1,3449.7,0.03247214]
[1718686801769,0.858,3449.8,3449.7,0.03247214]
[1718686801933,2.96451632,3449.8,3449.7,0.03247214]
[1718686802561,2.10702439,3449.8,3449.7,0.03247214]
[1718686807780,2.346,3450.1,3449.7,0.03247214]
[1718686807981,2.10685,3450.0,3449.7,0.03247214]
[1718686808144,2.10685,3449.9,3449.7,0.03247214]
[1718686808475,2.10685,3449.8,3449.7,0.03247214]
[1718686809796,2.10685,3450.2,3449.7,0.03247214]
[1718686809999,2.10685,3450.1,3449.7,0.03247214]
[1718686810154,1.31731354,3450.3,3449.7,0.03247214]
[1718686811607,2.10673958,3450.2,3449.7,0.03247214]
[1718686811740,2.10673958,3450.1,3449.7,0.03247214]
[1718686811947,2.10673958,3450.0,3449.7,0.03247214]
[1718686812149,2.10673958,3449.9,3449.7,0.03247214]
[1718686812372,2.10673958,3449.8,3449.7,0.03247214]
[1718686812745,2.10673958,3449.8,3449.7,0.89047214]
[1718686812957,1.31731354,3450.3,3449.7,1.50416279]
[1718686813287,0.50166961,3450.9,3450.2,3.154]
[1718686813462,7.43,3451.0,3450.4,0.858]
[1718686813662,0.50166961,3451.2,3450.4,0.858]
[1718686813868,7.93166961,3451.4,3450.4,0.858]
[1718686814556,7.93166961,3451.4,3450.7,0.858]
[1718686814759,7.93166961,3451.4,3450.9,0.858]
[1718686814760,7.43,3451.4,3450.9,0.858]
[1718686814986,7.43,3451.4,3450.7,0.858]
[1718686815155,7.43,3451.4,3450.2,2.296]
[1718686815355,7.43,3451.4,3450.6,0.858]
[1718686815583,7.43,3451.4,3450.5,0.858]
[1718686816659,0.858,3451.7,3450.7,0.858]
[1718686817004,0.50166961,3451.8,3450.9,0.858]
[1718686817208,0.50166961,3451.8,3451.1,0.858]
[1718686820103,0.50166961,3451.8,3451.3,0.858]
[1718686820421,9.64,3451.9,3451.3,0.858]
[1718686821394,9.64,3451.9,3450.9,2.3729]
[1718686821584,9.64,3451.9,3450.9,3.2309]
[1718686823920,0.858,3451.6,3450.6,0.858]
[1718686824086,1.03419194,3451.6,3450.6,0.858]
[1718686824288,1.03419194,3451.6,3450.7,0.02919165]
[1718686824782,0.858,3451.4,3450.5,0.858]
[1718686824985,0.858,3451.4,3450.6,0.02919776]
[1718686825187,1.03419194,3451.6,3450.7,0.858]
[1718686825718,0.17619194,3451.6,3450.9,0.858]
[1718686825926,0.17619194,3451.6,3450.8,0.02918554]
[1718686825927,0.17619194,3451.6,3451.1,0.858]
[1718686826288,0.17619194,3451.6,3451.2,0.02916111]
[1718686827513,0.17619194,3451.6,3451.5,0.858]
[1718686828018,0.17619194,3451.6,3451.5,0.88699732]
[1718686829402,0.17619194,3451.6,3451.5,0.02899732]
[1718686829653,0.17619194,3451.6,3451.2,7.31803]
[1718686829789,0.17619194,3451.6,3451.3,0.02900953]
[1718686830148,0.17619194,3451.6,3451.2,2.3635]
[1718686830328,0.17619194,3451.6,3451.4,0.0287816]
[1718686830486,0.17619194,3451.6,3451.3,0.02878771]
[1718686830686,0.17619194,3451.6,3451.5,0.02877549]
[1718686830923,0.17619194,3451.6,3451.4,0.0287816]
[1718686831130,0.17619194,3451.6,3451.5,0.02877549]
[1718686831486,0.17619194,3451.6,3451.1,2.89761]
[1718686831699,0.17619194,3451.6,3451.5,0.02879731]
[1718686832327,0.17619194,3451.6,3451.1,3.917142]
[1718686832785,0.17619194,3451.6,3451.2,0.02883381]
[1718686833911,0.17619194,3451.6,3451.2,2.92636381]
[1718686836643,0.17619194,3451.6,3451.3,2.89745]
[1718686836797,0.17619194,3451.6,3451.4,0.71230808]
[1718686837143,0.17619194,3451.6,3451.5,0.05794098]
[1718686837545,0.17619194,3451.6,3451.5,5.44890927]
[1718686840234,7.43,3452.4,3451.5,2.55161927]
[1718686840395,2.76682848,3452.8,3451.7,2.89712]
[1718686840591,2.76682848,3452.8,3451.8,0.02787276]
[1718686840828,2.2656,3452.8,3451.8,0.02787276]
[1718686841406,2.2656,3452.8,3451.6,2.67033139]
[1718686841613,2.2656,3452.8,3451.7,0.02787886]
[1718686841911,2.2656,3452.8,3451.8,0.80610803]
[1718686842292,2.2656,3452.8,3451.9,0.02786665]
[1718686842720,7.43,3452.9,3451.9,0.02786665]
[1718686843563,2.98012848,3453.2,3451.9,0.02786665]
[1718686843768,3.55,3453.1,3451.9,0.02786665]
[1718686844082,3.55,3453.1,3452.0,0.37889804]
[1718686844423,3.55,3453.1,3452.1,0.02785444]
[1718686845660,2.3846,3453.0,3452.2,0.02748759]
[1718686845958,2.3846,3453.0,3451.2,2.2548]
[1718686845959,2.3846,3452.8,3451.2,5.15232]
[1718686846157,0.55,3452.7,3451.3,0.805003]
[1718686846335,0.55,3452.7,3451.3,0.83256921]
[1718686846925,5.4998,3452.6,3451.3,0.02756621]
[1718686847121,2.4998,3452.4,3451.3,0.02756621]
[1718686847426,0.55,3452.3,3451.4,0.02768001]
[1718686847727,0.55,3452.3,3450.8,3.0]
[1718686847931,0.55,3452.3,3450.8,5.89787]
[1718686848142,0.55,3452.3,3450.9,0.84281755]
[1718686851735,2.4998,3452.4,3450.9,0.84281755]
[1718686852870,2.4998,3452.4,3450.9,3.74060755]
[1718686854862,2.4998,3452.4,3451.2,2.3351]
[1718686855041,2.4998,3452.4,3451.4,2.89735]
[1718686855381,2.4998,3452.4,3451.5,0.55299221]
[1718686855561,2.21,3452.5,3451.5,3.45027221]
[1718686858180,2.21,3452.5,3451.6,2.2604]
[1718686858674,2.21,3452.5,3451.7,0.02702233]
[1718686860676,7.93133578,3452.8,3451.7,0.02702233]
[1718686861043,6.055,3452.7,3451.7,0.02702233]
[1718686861247,2.4663,3452.6,3450.9,2.3127]
[1718686861546,2.4663,3452.6,3451.2,2.89751]
[1718686862076,2.4663,3452.6,3451.4,2.3127]
[1718686862281,2.4663,3452.6,3451.5,0.02680578]
[1718686865682,2.4663,3452.6,3451.0,2.878064]
[1718686865897,2.4663,3452.6,3451.1,0.02692462]
[1718686866090,2.4663,3452.6,3451.2,0.53797886]
[1718686866398,2.4663,3452.6,3451.3,0.02691241]
[1718686867154,2.96759791,3452.6,3451.3,0.02691241]
[1718686867389,2.96759791,3452.6,3450.9,2.4748]
[1718686867390,3.26821225,3452.6,3450.9,2.4748]
[1718686867604,0.50129791,3452.5,3451.4,0.02691356]
[1718686867976,3.26821225,3452.6,3450.9,2.4748]
[1718686868178,3.26821225,3452.6,3451.0,1.042968]
[1718686868394,3.26821225,3452.6,3451.0,1.069906]
[1718686869620,3.50129791,3452.5,3451.0,0.026938]
[1718686869765,3.0,3452.5,3451.0,0.026938]
[1718686870620,0.55,3452.4,3451.0,0.026938]
[1718686871682,2.4459,3452.0,3451.0,0.026938]
[1718686871867,2.4459,3452.0,3449.7,10.93162516]
[1718686871868,5.5009,3451.7,3450.1,2.306]
[1718686872074,3.55,3451.6,3450.2,0.25779748]
[1718686872425,3.55,3451.6,3450.1,2.306]
[1718686872426,7.10635362,3451.6,3450.1,2.306]
[1718686872786,7.46900539,3451.6,3450.2,0.02719748]
[1718686872976,3.0,3451.4,3450.2,0.02719748]
[1718686873182,5.3555,3451.2,3450.2,0.02719748]
[1718686873724,5.3555,3451.2,3449.7,2.2717]
[1718686873725,0.55,3451.1,3449.7,2.2717]
[1718686873873,0.55,3451.1,3449.8,0.22717]
[1718686874260,0.55,3451.1,3449.9,0.02721582]
[1718686876115,2.3005,3451.2,3449.9,0.02721582]
[1718686876315,3.0,3451.3,3449.9,0.08518666]
[1718686876515,3.0,3451.3,3450.0,0.75398467]
[1718686876741,3.0,3451.3,3450.0,0.78172478]
[1718686877718,3.0,3451.3,3450.1,2.306]
[1718686877885,3.0,3451.5,3450.1,2.306]
[1718686878210,3.0,3451.5,3450.2,0.02772789]
[1718686880815,3.0,3451.4,3450.2,0.02772789]
[1718686880981,3.0,3451.3,3450.2,0.02772789]
[1718686889637,0.858,3451.2,3450.3,0.858]
[1718686889938,0.858,3451.2,3450.1,2.306]
[1718686890240,0.858,3451.2,3450.1,3.164]
[1718686890424,0.858,3451.2,3450.2,0.02813846]
[1718686890626,3.0,3451.3,3450.2,0.02813846]
[1718686890627,0.858,3451.0,3450.2,0.02813846]
[1718686892509,0.858,3451.0,3450.2,0.34735231]
[1718686896653,0.858,3451.2,3450.2,0.34735231]
[1718686897654,3.858,3451.3,3450.3,3.1556]
[1718686898033,3.0,3451.3,3450.4,2.2976]
[1718686898356,0.50151587,3451.8,3451.0,2.2976]
[1718686898531,0.50151587,3451.8,3451.3,0.858]
[1718686898736,7.43,3452.1,3451.4,0.02795612]
[1718686899123,7.43,3452.1,3451.3,0.858]
[1718686899771,7.43,3452.1,3451.4,2.2882]
[1718686900215,7.43,3452.1,3451.5,0.858]
[1718686900410,2.21,3452.2,3451.8,2.2882]
[1718686900907,2.21,3452.2,3451.9,0.0276531]
[1718686901208,7.43,3452.5,3451.9,0.8856531]
[1718686901426,7.43,3452.5,3451.9,0.0276531]
[1718686901577,7.43,3452.5,3451.9,0.05793785]
[1718686901920,7.43,3452.5,3452.1,2.2882]
[1718686902333,7.43,3452.5,3452.2,0.02756577]